[Event "*** SCC Grand Prix: Titled Tuesday Blitz"]
[Site "Chess.com"]
[Date "2020.08.25"]
[Round "5"]
[White "zmarian"]
[Black "tteshan"]
[Result "0-1"]
[WhiteElo "2170"]
[BlackElo "2339"]
[TimeControl "180+1"]
[EndTime "10:56:46 PDT"]
[Termination "tteshan won by resignation"]

1. g3 {[%clk 0:03:00.9]} 1... c5 {[%clk 0:02:59.4]} 2. Bg2 {[%clk 0:03:00.2]}
2... Nc6 {[%clk 0:02:59.9]} 3. Nf3 {[%clk 0:02:59.8]} 3... g6 {[%clk 0:02:59.9]}
4. d4 {[%clk 0:02:58.8]} 4... cxd4 {[%clk 0:02:59.3]} 5. Nxd4 {[%clk 0:02:58.4]}
5... Bg7 {[%clk 0:02:59.8]} 6. e3 {[%clk 0:02:56.2]} 6... Nf6 {[%clk 0:02:55.9]}
7. O-O {[%clk 0:02:55.8]} 7... O-O {[%clk 0:02:52.4]} 8. c4 {[%clk 0:02:55.5]}
8... a6 {[%clk 0:02:36.2]} 9. Nc3 {[%clk 0:02:53.6]} 9... Qc7 {[%clk 0:02:34.9]}
10. b3 {[%clk 0:02:46.7]} 10... d6 {[%clk 0:02:31.4]} 11. Bb2 {[%clk 0:02:41.8]}
11... Bg4 {[%clk 0:02:27.2]} 12. Qd2 {[%clk 0:02:37.5]} 12... Rac8 {[%clk
0:02:21.4]} 13. Rac1 {[%clk 0:02:35.4]} 13... Qa5 {[%clk 0:02:13.9]} 14. h3
{[%clk 0:02:23.7]} 14... Bd7 {[%clk 0:02:05.3]} 15. Rfd1 {[%clk 0:02:18.8]}
15... Nxd4 {[%clk 0:01:51.6]} 16. exd4 {[%clk 0:02:16.8]} 16... b5 {[%clk
0:01:36]} 17. Nd5 {[%clk 0:02:01.4]} 17... Qd8 {[%clk 0:01:35.7]} 18. cxb5
{[%clk 0:01:56.9]} 18... Nxd5 {[%clk 0:01:33.8]} 19. Bxd5 {[%clk 0:01:55.2]}
19... axb5 {[%clk 0:01:29.8]} 20. Bg2 {[%clk 0:01:53.5]} 20... h5 {[%clk
0:01:26.4]} 21. Re1 {[%clk 0:01:50.4]} 21... Kh7 {[%clk 0:01:23.6]} 22. Rxc8
{[%clk 0:01:45.4]} 22... Qxc8 {[%clk 0:01:23.3]} 23. Rxe7 {[%clk 0:01:41.8]}
23... Bxh3 {[%clk 0:01:21.9]} 24. Re1 {[%clk 0:01:33]} 24... Bxg2 {[%clk
0:01:21.2]} 25. Kxg2 {[%clk 0:01:33.1]} 25... Qa8+ {[%clk 0:01:18.5]} 26. Kh2
{[%clk 0:01:22.8]} 26... Qxa2 {[%clk 0:01:17.6]} 27. b4 {[%clk 0:01:16.5]} 27...
Rc8 {[%clk 0:01:11]} 28. Re7 {[%clk 0:01:13.5]} 28... Qd5 {[%clk 0:01:07.2]} 29.
Bc3 {[%clk 0:01:08.7]} 29... Rc4 {[%clk 0:01:05]} 30. Rd7 {[%clk 0:01:03]} 30...
Qe6 {[%clk 0:00:55.4]} 31. Rb7 {[%clk 0:00:58.1]} 31... Qf5 {[%clk 0:00:50.2]}
32. Rb6 {[%clk 0:00:49.2]} 32... Rxc3 {[%clk 0:00:41.5]} 33. Qxc3 {[%clk
0:00:44.7]} 33... Qxf2+ {[%clk 0:00:40.8]} 34. Kh3 {[%clk 0:00:42.5]} 34... Bxd4
{[%clk 0:00:37.5]} 35. Qd3 {[%clk 0:00:35.3]} 35... Bxb6 {[%clk 0:00:35.2]} 36.
Qxd6 {[%clk 0:00:35.2]} 36... Qf1+ {[%clk 0:00:32.9]} 37. Kh2 {[%clk 0:00:33.7]}
37... Bg1+ {[%clk 0:00:29.7]} 0-1

[Event "*** SCC Grand Prix: Titled Tuesday Blitz"]
[Site "Chess.com"]
[Date "2020.08.25"]
[Round "5"]
[White "LaPorfia"]
[Black "NoboaKevin1999"]
[Result "0-1"]
[WhiteElo "2228"]
[BlackElo "2429"]
[TimeControl "180+1"]
[EndTime "10:56:48 PDT"]
[Termination "NoboaKevin1999 won by resignation"]

1. d4 {[%clk 0:03:00.9]} 1... Nf6 {[%clk 0:02:59.6]} 2. Nf3 {[%clk 0:03:00.4]}
2... g6 {[%clk 0:02:59.4]} 3. Nc3 {[%clk 0:02:59.8]} 3... d5 {[%clk 0:02:53]} 4.
Bf4 {[%clk 0:02:58.7]} 4... c6 {[%clk 0:02:49.5]} 5. e3 {[%clk 0:02:57]} 5...
Bg7 {[%clk 0:02:48.4]} 6. Be2 {[%clk 0:02:55.9]} 6... Bg4 {[%clk 0:02:47.6]} 7.
Ne5 {[%clk 0:02:55.4]} 7... Bxe2 {[%clk 0:02:46.6]} 8. Qxe2 {[%clk 0:02:55.1]}
8... Nbd7 {[%clk 0:02:46.8]} 9. h4 {[%clk 0:02:53.5]} 9... Nh5 {[%clk
0:02:42.1]} 10. Nxd7 {[%clk 0:02:26.7]} 10... Nxf4 {[%clk 0:02:36]} 11. exf4
{[%clk 0:02:27.6]} 11... Qxd7 {[%clk 0:02:35.8]} 12. O-O-O {[%clk 0:02:26.3]}
12... O-O-O {[%clk 0:02:35]} 13. Rhe1 {[%clk 0:02:22.5]} 13... e6 {[%clk
0:02:34.7]} 14. Kb1 {[%clk 0:02:21.3]} 14... h5 {[%clk 0:02:30]} 15. Na4 {[%clk
0:02:20.2]} 15... Qd6 {[%clk 0:02:27.5]} 16. g3 {[%clk 0:02:13.9]} 16... Qb4
{[%clk 0:02:11.5]} 17. b3 {[%clk 0:01:55.4]} 17... Bxd4 {[%clk 0:02:02.4]} 18.
c3 {[%clk 0:01:50.1]} 18... Bxc3 {[%clk 0:02:01.8]} 19. Nxc3 {[%clk 0:01:44.5]}
19... Qxc3 {[%clk 0:02:02.7]} 20. Rc1 {[%clk 0:01:45.2]} 20... Qa5 {[%clk
0:01:49.4]} 21. Qe5 {[%clk 0:01:42.6]} 21... Qc7 {[%clk 0:01:48.4]} 22. Qf6
{[%clk 0:01:40]} 22... Rhe8 {[%clk 0:01:44]} 23. Re2 {[%clk 0:01:33.3]} 23...
Kb8 {[%clk 0:01:43.6]} 24. Qd4 {[%clk 0:01:25]} 24... b6 {[%clk 0:01:37.1]} 25.
b4 {[%clk 0:01:23.4]} 25... Kb7 {[%clk 0:01:35.1]} 26. Rec2 {[%clk 0:01:22.8]}
26... Rd6 {[%clk 0:01:34.2]} 27. Qe5 {[%clk 0:01:13.2]} 27... Rc8 {[%clk
0:01:32.9]} 28. a4 {[%clk 0:01:10.2]} 28... d4 {[%clk 0:01:28.8]} 29. Rc4 {[%clk
0:01:09.6]} 29... Rd5 {[%clk 0:01:25.5]} 30. Qe4 {[%clk 0:00:37.3]} 30... Qd6
{[%clk 0:01:19.8]} 31. b5 {[%clk 0:00:27.5]} 31... c5 {[%clk 0:01:17.9]} 32. Rd1
{[%clk 0:00:27.4]} 32... Kb8 {[%clk 0:01:15.6]} 33. Kc2 {[%clk 0:00:27.1]} 33...
Rd8 {[%clk 0:01:11.5]} 34. Kd3 {[%clk 0:00:27]} 34... e5 {[%clk 0:01:07.1]} 35.
f5 {[%clk 0:00:20.5]} 35... Qf6 {[%clk 0:00:56]} 36. Re1 {[%clk 0:00:14.5]}
36... gxf5 {[%clk 0:00:50.1]} 37. Qg2 {[%clk 0:00:13.8]} 37... e4+ {[%clk
0:00:49.8]} 38. Kc2 {[%clk 0:00:14.2]} 38... d3+ {[%clk 0:00:49.8]} 39. Kb3
{[%clk 0:00:14.7]} 39... Rd4 {[%clk 0:00:48.8]} 0-1

[Event "*** SCC Grand Prix: Titled Tuesday Blitz"]
[Site "Chess.com"]
[Date "2020.08.25"]
[Round "5"]
[White "TwentyHoursADay"]
[Black "MariaFominykh"]
[Result "1-0"]
[WhiteElo "2486"]
[BlackElo "2298"]
[TimeControl "180+1"]
[EndTime "10:56:49 PDT"]
[Termination "TwentyHoursADay won by resignation"]

1. b4 {[%clk 0:02:59.8]} 1... Nf6 {[%clk 0:02:59.5]} 2. Bb2 {[%clk 0:02:59.8]}
2... e6 {[%clk 0:02:56.6]} 3. a3 {[%clk 0:02:59.5]} 3... Be7 {[%clk 0:02:53.2]}
4. Nf3 {[%clk 0:02:59.2]} 4... O-O {[%clk 0:02:51.2]} 5. e3 {[%clk 0:02:58.5]}
5... b6 {[%clk 0:02:50.3]} 6. c4 {[%clk 0:02:58.7]} 6... Bb7 {[%clk 0:02:50.3]}
7. Qc2 {[%clk 0:02:58.9]} 7... d5 {[%clk 0:02:50]} 8. Ng5 {[%clk 0:02:59]} 8...
Nbd7 {[%clk 0:02:37.6]} 9. Nc3 {[%clk 0:02:57.4]} 9... h6 {[%clk 0:02:33.3]} 10.
h4 {[%clk 0:02:57.6]} 10... dxc4 {[%clk 0:02:15.3]} 11. Bxc4 {[%clk 0:02:56.3]}
11... Ne5 {[%clk 0:02:07.1]} 12. Be2 {[%clk 0:02:56.3]} 12... c5 {[%clk
0:01:30]} 13. f4 {[%clk 0:02:50.8]} 13... Ned7 {[%clk 0:01:20.8]} 14. b5 {[%clk
0:02:45.5]} 14... a6 {[%clk 0:01:14.9]} 15. Rh3 {[%clk 0:02:29.3]} 15... axb5
{[%clk 0:01:05.7]} 16. Bxb5 {[%clk 0:02:16.8]} 16... e5 {[%clk 0:00:56.1]} 17.
Bxd7 {[%clk 0:02:02.6]} 17... Qxd7 {[%clk 0:00:54.6]} 18. fxe5 {[%clk
0:02:02.6]} 18... Bxg2 {[%clk 0:00:22.7]} 19. Rg3 {[%clk 0:01:52]} 19... hxg5
{[%clk 0:00:20.3]} 20. exf6 {[%clk 0:01:47.7]} 20... Bxf6 {[%clk 0:00:18.4]} 21.
hxg5 {[%clk 0:01:38]} 21... Bxc3 {[%clk 0:00:17.9]} 22. Qxc3 {[%clk 0:01:36.4]}
22... f6 {[%clk 0:00:15.3]} 23. gxf6 {[%clk 0:01:24.1]} 23... Rf7 {[%clk
0:00:12.6]} 24. Rxg2 {[%clk 0:01:17.8]} 24... Qh3 {[%clk 0:00:10.7]} 25. Kf2
{[%clk 0:01:08.9]} 25... Raf8 {[%clk 0:00:08.4]} 26. Rag1 {[%clk 0:01:03.7]}
26... Rxf6+ {[%clk 0:00:08.2]} 27. Qxf6 {[%clk 0:00:41.2]} 27... Rxf6+ {[%clk
0:00:07.6]} 28. Bxf6 {[%clk 0:00:42.1]} 28... Qf5+ {[%clk 0:00:07.4]} 29. Ke2
{[%clk 0:00:41.5]} 29... Qxf6 {[%clk 0:00:07]} 30. Rxg7+ {[%clk 0:00:41.6]}
30... Kf8 {[%clk 0:00:06.6]} 31. Rg8+ {[%clk 0:00:41.2]} 31... Kf7 {[%clk
0:00:05.2]} 32. R1g7+ {[%clk 0:00:40.1]} 32... Qxg7 {[%clk 0:00:04.8]} 33. Rxg7+
{[%clk 0:00:41]} 33... Kxg7 {[%clk 0:00:04.7]} 34. Kd3 {[%clk 0:00:41.3]} 34...
Kf6 {[%clk 0:00:04.8]} 35. Kc4 {[%clk 0:00:41.8]} 1-0

[Event "*** SCC Grand Prix: Titled Tuesday Blitz"]
[Site "Chess.com"]
[Date "2020.08.25"]
[Round "5"]
[White "mr65"]
[Black "VinzentSpitzl"]
[Result "0-1"]
[WhiteElo "2166"]
[BlackElo "2376"]
[TimeControl "180+1"]
[EndTime "10:56:51 PDT"]
[Termination "VinzentSpitzl won on time"]

1. e4 {[%clk 0:03:00.9]} 1... c6 {[%clk 0:02:55.4]} 2. Nc3 {[%clk 0:02:59.4]}
2... d5 {[%clk 0:02:55.2]} 3. Nf3 {[%clk 0:02:59]} 3... dxe4 {[%clk 0:02:55.3]}
4. Nxe4 {[%clk 0:02:58]} 4... Nf6 {[%clk 0:02:55.9]} 5. Nxf6+ {[%clk 0:02:57]}
5... exf6 {[%clk 0:02:56.8]} 6. d4 {[%clk 0:02:54.9]} 6... Bd6 {[%clk
0:02:54.8]} 7. Bd3 {[%clk 0:02:52.7]} 7... O-O {[%clk 0:02:54]} 8. h3 {[%clk
0:02:52.3]} 8... Re8+ {[%clk 0:02:49.7]} 9. Be3 {[%clk 0:02:51.1]} 9... Bf4
{[%clk 0:02:49.2]} 10. O-O {[%clk 0:02:38.2]} 10... Bxe3 {[%clk 0:02:46]} 11.
fxe3 {[%clk 0:02:37.2]} 11... Rxe3 {[%clk 0:02:46.5]} 12. Bxh7+ {[%clk
0:02:13.5]} 12... Kxh7 {[%clk 0:02:21.4]} 13. Ng5+ {[%clk 0:02:12.3]} 13... Kg6
{[%clk 0:01:56.3]} 14. Qd2 {[%clk 0:01:37.1]} 14... Qe7 {[%clk 0:01:38.8]} 15.
Rae1 {[%clk 0:01:35.5]} 15... Rxe1 {[%clk 0:01:37.1]} 16. Rxe1 {[%clk
0:01:35.1]} 16... Be6 {[%clk 0:01:29.2]} 17. Qd3+ {[%clk 0:01:12.4]} 17... f5
{[%clk 0:01:14.3]} 18. h4 {[%clk 0:01:12]} 18... Qd6 {[%clk 0:01:01.6]} 19. g4
{[%clk 0:00:48.6]} 19... Nd7 {[%clk 0:00:54.9]} 20. Nxe6 {[%clk 0:00:19.2]}
20... fxe6 {[%clk 0:00:52.8]} 21. h5+ {[%clk 0:00:18.8]} 21... Kf6 {[%clk
0:00:45]} 22. g5+ {[%clk 0:00:16]} 22... Kxg5 {[%clk 0:00:41.7]} 23. Kh1 {[%clk
0:00:10.8]} 23... Nf6 {[%clk 0:00:35.3]} 24. Rg1+ {[%clk 0:00:08]} 24... Ng4
{[%clk 0:00:35.3]} 25. Qh3 {[%clk 0:00:07.1]} 25... Qd5+ {[%clk 0:00:33]} 26.
Rg2 {[%clk 0:00:04.9]} 26... Rh8 {[%clk 0:00:31]} 27. Qe3+ {[%clk 0:00:04]}
27... f4 {[%clk 0:00:28.5]} 0-1

[Event "*** SCC Grand Prix: Titled Tuesday Blitz"]
[Site "Chess.com"]
[Date "2020.08.25"]
[Round "5"]
[White "GMJustin"]
[Black "Chessdreamer2020"]
[Result "0-1"]
[WhiteElo "2238"]
[BlackElo "2488"]
[TimeControl "180+1"]
[EndTime "10:56:51 PDT"]
[Termination "Chessdreamer2020 won on time"]

1. d4 {[%clk 0:02:50]} 1... d6 {[%clk 0:02:59.7]} 2. e4 {[%clk 0:02:49.7]} 2...
Nf6 {[%clk 0:02:58.9]} 3. Nc3 {[%clk 0:02:49.3]} 3... e5 {[%clk 0:02:59.3]} 4.
dxe5 {[%clk 0:02:38.1]} 4... dxe5 {[%clk 0:02:59.5]} 5. Qxd8+ {[%clk 0:02:38.5]}
5... Kxd8 {[%clk 0:03:00.2]} 6. f4 {[%clk 0:02:38.8]} 6... Bb4 {[%clk
0:02:59.4]} 7. Bd3 {[%clk 0:02:16.6]} 7... Nc6 {[%clk 0:02:45.4]} 8. Nf3 {[%clk
0:02:09.5]} 8... Bg4 {[%clk 0:02:27.8]} 9. fxe5 {[%clk 0:02:00.9]} 9... Nd7
{[%clk 0:02:27]} 10. Bg5+ {[%clk 0:01:50]} 10... Kc8 {[%clk 0:02:26.8]} 11.
O-O-O {[%clk 0:00:20.2]} 11... Bxc3 {[%clk 0:02:19.3]} 12. bxc3 {[%clk
0:00:18.5]} 12... Ndxe5 {[%clk 0:02:18.1]} 13. Nxe5 {[%clk 0:00:14.8]} 13...
Nxe5 {[%clk 0:02:09.6]} 14. Rde1 {[%clk 0:00:09.6]} 14... Be6 {[%clk 0:02:06.2]}
15. Kb2 {[%clk 0:00:07.9]} 15... Re8 {[%clk 0:02:03.8]} 16. Rhf1 {[%clk
0:00:06.2]} 16... f6 {[%clk 0:02:02.9]} 17. Bf4 {[%clk 0:00:06.5]} 17... Bf7
{[%clk 0:02:02.3]} 18. Bxe5 {[%clk 0:00:05.8]} 18... Rxe5 {[%clk 0:02:01.6]} 19.
Rf5 {[%clk 0:00:06.5]} 19... Kd7 {[%clk 0:01:51.7]} 20. Rxe5 {[%clk 0:00:06.1]}
20... fxe5 {[%clk 0:01:52.6]} 21. Rf1 {[%clk 0:00:06.5]} 21... Bg6 {[%clk
0:01:52.1]} 22. Rf3 {[%clk 0:00:04.2]} 22... Ke7 {[%clk 0:01:52.1]} 23. g3
{[%clk 0:00:02]} 23... Rd8 {[%clk 0:01:51.1]} 24. a3 {[%clk 0:00:01.9]} 24...
Rd6 {[%clk 0:01:51.2]} 25. Kc1 {[%clk 0:00:02]} 25... Rc6 {[%clk 0:01:48.3]} 26.
Kb2 {[%clk 0:00:01.9]} 26... Rb6+ {[%clk 0:01:47.9]} 27. Kc1 {[%clk 0:00:01.8]}
27... Rc6 {[%clk 0:01:47.5]} 28. Kb2 {[%clk 0:00:02]} 28... Rc5 {[%clk
0:01:47.8]} 29. Rf2 {[%clk 0:00:01.7]} 29... Ra5 {[%clk 0:01:47.3]} 30. h4
{[%clk 0:00:01.1]} 30... Rc5 {[%clk 0:01:45.3]} 31. g4 {[%clk 0:00:01.2]} 31...
h6 {[%clk 0:01:44]} 32. g5 {[%clk 0:00:01.2]} 32... hxg5 {[%clk 0:01:41.6]} 33.
Rg2 {[%clk 0:00:01.6]} 33... Rc6 {[%clk 0:01:40.6]} 34. Rxg5 {[%clk 0:00:01.7]}
34... Kf6 {[%clk 0:01:38.2]} 35. Rg3 {[%clk 0:00:02]} 35... Rd6 {[%clk
0:01:37.5]} 36. Rf3+ {[%clk 0:00:02.2]} 36... Ke7 {[%clk 0:01:37.5]} 37. Rg3
{[%clk 0:00:02.6]} 37... Kf7 {[%clk 0:01:33.6]} 38. Bc4+ {[%clk 0:00:02.4]}
38... Kf8 {[%clk 0:01:32.3]} 39. Bd3 {[%clk 0:00:02.6]} 39... Rf6 {[%clk
0:01:31.1]} 40. Rg5 {[%clk 0:00:02.6]} 40... Re6 {[%clk 0:01:24.4]} 41. Bc4
{[%clk 0:00:02.2]} 41... Rb6+ {[%clk 0:01:24.3]} 42. Kc1 {[%clk 0:00:02.6]}
42... Bxe4 {[%clk 0:01:24.4]} 43. Rxe5 {[%clk 0:00:02.2]} 43... Bg6 {[%clk
0:01:21]} 44. Bb3 {[%clk 0:00:02.3]} 44... Rf6 {[%clk 0:01:18.6]} 45. h5 {[%clk
0:00:02.2]} 45... Rf1+ {[%clk 0:01:15.9]} 46. Kd2 {[%clk 0:00:01.8]} 46... Bf7
{[%clk 0:01:15.7]} 0-1

[Event "*** SCC Grand Prix: Titled Tuesday Blitz"]
[Site "Chess.com"]
[Date "2020.08.25"]
[Round "5"]
[White "Haykoooo0o"]
[Black "AndrewMaco"]
[Result "0-1"]
[WhiteElo "2517"]
[BlackElo "2725"]
[TimeControl "180+1"]
[EndTime "10:56:52 PDT"]
[Termination "AndrewMaco won on time"]

1. d4 {[%clk 0:03:00.9]} 1... Nf6 {[%clk 0:02:58.9]} 2. Nf3 {[%clk 0:03:01.3]}
2... d5 {[%clk 0:02:57.5]} 3. e3 {[%clk 0:03:01.1]} 3... e6 {[%clk 0:02:55.2]}
4. Bd3 {[%clk 0:03:01.3]} 4... Bd6 {[%clk 0:02:51.8]} 5. Nbd2 {[%clk 0:03:00.9]}
5... O-O {[%clk 0:02:50]} 6. Qe2 {[%clk 0:03:01.3]} 6... c5 {[%clk 0:02:47.9]}
7. c3 {[%clk 0:03:01.3]} 7... Nc6 {[%clk 0:02:46.6]} 8. e4 {[%clk 0:02:55.3]}
8... dxe4 {[%clk 0:02:34.6]} 9. Nxe4 {[%clk 0:02:56.2]} 9... Nxe4 {[%clk
0:02:31.7]} 10. Qxe4 {[%clk 0:02:55.7]} 10... f5 {[%clk 0:02:32.1]} 11. Qe3
{[%clk 0:02:46]} 11... cxd4 {[%clk 0:02:30]} 12. Nxd4 {[%clk 0:02:45.5]} 12...
Nxd4 {[%clk 0:02:22.2]} 13. Qxd4 {[%clk 0:02:42.8]} 13... e5 {[%clk 0:02:18.6]}
14. Qd5+ {[%clk 0:02:34.3]} 14... Kh8 {[%clk 0:02:16.6]} 15. O-O {[%clk
0:02:33.4]} 15... e4 {[%clk 0:01:39.8]} 16. Bc4 {[%clk 0:02:33]} 16... Qc7
{[%clk 0:01:39.8]} 17. g3 {[%clk 0:02:26.1]} 17... f4 {[%clk 0:01:10.1]} 18.
Qxe4 {[%clk 0:02:13.1]} 18... Bh3 {[%clk 0:01:06.8]} 19. Bd2 {[%clk 0:01:33.5]}
19... Rae8 {[%clk 0:01:04.4]} 20. Qd5 {[%clk 0:01:26.6]} 20... Bxf1 {[%clk
0:00:52.3]} 21. Rxf1 {[%clk 0:01:15.2]} 21... fxg3 {[%clk 0:00:52.6]} 22. hxg3
{[%clk 0:01:13.9]} 22... Bc5 {[%clk 0:00:52.4]} 23. Kg2 {[%clk 0:01:11.4]} 23...
Rd8 {[%clk 0:00:50.8]} 24. Qg5 {[%clk 0:01:06.5]} 24... h6 {[%clk 0:00:46.1]}
25. Rh1 {[%clk 0:00:32.5]} 25... Rxf2+ {[%clk 0:00:44.8]} 26. Kh3 {[%clk
0:00:32.2]} 26... Rdxd2 {[%clk 0:00:43]} 27. b4 {[%clk 0:00:24.5]} 27... Qc8+
{[%clk 0:00:38.2]} 28. g4 {[%clk 0:00:19.6]} 28... Bd6 {[%clk 0:00:32.2]} 0-1

[Event "*** SCC Grand Prix: Titled Tuesday Blitz"]
[Site "Chess.com"]
[Date "2020.08.25"]
[Round "5"]
[White "karwowskikacper"]
[Black "skiff134"]
[Result "0-1"]
[WhiteElo "2414"]
[BlackElo "2643"]
[TimeControl "180+1"]
[EndTime "10:56:52 PDT"]
[Termination "skiff134 won by resignation"]

1. e4 {[%clk 0:02:56.9]} 1... c6 {[%clk 0:02:56]} 2. d4 {[%clk 0:02:54.9]} 2...
d5 {[%clk 0:02:55.9]} 3. exd5 {[%clk 0:02:55.8]} 3... cxd5 {[%clk 0:02:56.2]} 4.
c4 {[%clk 0:02:56.7]} 4... Nf6 {[%clk 0:02:56.1]} 5. Nc3 {[%clk 0:02:56.9]} 5...
g6 {[%clk 0:02:56.5]} 6. Qb3 {[%clk 0:02:53.9]} 6... Bg7 {[%clk 0:02:56.4]} 7.
cxd5 {[%clk 0:02:52.4]} 7... O-O {[%clk 0:02:57]} 8. Be2 {[%clk 0:02:51]} 8...
Nbd7 {[%clk 0:02:57.3]} 9. Bf3 {[%clk 0:02:49.1]} 9... Nb6 {[%clk 0:02:58]} 10.
Bf4 {[%clk 0:02:44.7]} 10... Bg4 {[%clk 0:02:54.4]} 11. Bxg4 {[%clk 0:02:40.3]}
11... Nxg4 {[%clk 0:02:55.3]} 12. Nf3 {[%clk 0:02:40.9]} 12... Nf6 {[%clk
0:02:54.3]} 13. d6 {[%clk 0:02:35.6]} 13... exd6 {[%clk 0:02:54.3]} 14. O-O
{[%clk 0:02:36]} 14... Nh5 {[%clk 0:02:52.7]} 15. Bg5 {[%clk 0:02:33]} 15... Qd7
{[%clk 0:02:49.6]} 16. a4 {[%clk 0:02:29.2]} 16... d5 {[%clk 0:02:48.1]} 17.
Rfd1 {[%clk 0:02:20.3]} 17... Nc4 {[%clk 0:02:40.9]} 18. Rac1 {[%clk 0:02:13.9]}
18... Rac8 {[%clk 0:02:36.3]} 19. h3 {[%clk 0:02:03.4]} 19... h6 {[%clk
0:02:32.1]} 20. Bh4 {[%clk 0:01:48.3]} 20... g5 {[%clk 0:02:13.5]} 21. Bg3
{[%clk 0:01:47.5]} 21... Nxg3 {[%clk 0:02:13.8]} 22. fxg3 {[%clk 0:01:48.4]}
22... Qd6 {[%clk 0:02:14.5]} 23. Ne5 {[%clk 0:01:36.3]} 23... Nxe5 {[%clk
0:01:33.3]} 24. dxe5 {[%clk 0:01:37.2]} 24... Qxe5 {[%clk 0:01:25.7]} 25. Qxd5
{[%clk 0:01:19.4]} 25... Qxg3 {[%clk 0:01:14.2]} 26. Qxb7 {[%clk 0:01:16.8]}
26... Rb8 {[%clk 0:01:14.3]} 27. Qe4 {[%clk 0:00:33.4]} 27... Rxb2 {[%clk
0:00:46.7]} 28. Ne2 {[%clk 0:00:32.8]} 28... Qa3 {[%clk 0:00:39.7]} 29. Rc4
{[%clk 0:00:16.3]} 29... Qa2 {[%clk 0:00:29.3]} 30. Nd4 {[%clk 0:00:10.9]} 30...
Qxc4 {[%clk 0:00:26.4]} 0-1

[Event "*** SCC Grand Prix: Titled Tuesday Blitz"]
[Site "Chess.com"]
[Date "2020.08.25"]
[Round "5"]
[White "niki_2003"]
[Black "katchesskat"]
[Result "0-1"]
[WhiteElo "1663"]
[BlackElo "2257"]
[TimeControl "180+1"]
[EndTime "10:56:55 PDT"]
[Termination "katchesskat won by checkmate"]

1. d4 {[%clk 0:03:00.9]} 1... c5 {[%clk 0:03:00.9]} 2. d5 {[%clk 0:03:00.4]}
2... e5 {[%clk 0:03:00.6]} 3. c4 {[%clk 0:02:58.9]} 3... d6 {[%clk 0:02:59.4]}
4. Nc3 {[%clk 0:02:57.6]} 4... Ne7 {[%clk 0:02:58.9]} 5. e4 {[%clk 0:02:58.1]}
5... Ng6 {[%clk 0:02:58.6]} 6. g3 {[%clk 0:02:57.8]} 6... Be7 {[%clk 0:02:58.6]}
7. Bg2 {[%clk 0:02:57.5]} 7... O-O {[%clk 0:02:57.9]} 8. Nge2 {[%clk 0:02:55]}
8... Bg4 {[%clk 0:02:56.8]} 9. O-O {[%clk 0:02:53]} 9... Bxe2 {[%clk 0:02:56.4]}
10. Qxe2 {[%clk 0:02:52]} 10... Nd7 {[%clk 0:02:55.5]} 11. f4 {[%clk 0:02:49.7]}
11... exf4 {[%clk 0:02:56.4]} 12. gxf4 {[%clk 0:02:47.3]} 12... a6 {[%clk
0:02:55]} 13. Rf3 {[%clk 0:02:43.7]} 13... Rb8 {[%clk 0:02:53.7]} 14. a4 {[%clk
0:02:38]} 14... Bf6 {[%clk 0:02:53.5]} 15. Rh3 {[%clk 0:02:34.7]} 15... Re8
{[%clk 0:02:41.5]} 16. Qh5 {[%clk 0:02:30.1]} 16... Bd4+ {[%clk 0:02:41.1]} 17.
Kh1 {[%clk 0:02:28.9]} 17... Nf6 {[%clk 0:02:41.2]} 18. Qe2 {[%clk 0:02:26.1]}
18... Qe7 {[%clk 0:02:31.2]} 19. Bd2 {[%clk 0:02:03.9]} 19... Bxc3 {[%clk
0:02:25.7]} 20. Bxc3 {[%clk 0:01:59.2]} 20... Nxe4 {[%clk 0:02:25.4]} 21. Re1
{[%clk 0:01:50.9]} 21... Ng3+ {[%clk 0:02:17.9]} 22. Rxg3 {[%clk 0:01:46.1]}
22... Qxe2 {[%clk 0:02:17.6]} 23. Rxe2 {[%clk 0:01:46.6]} 23... Rxe2 {[%clk
0:02:17]} 24. f5 {[%clk 0:01:47.3]} 24... Ne5 {[%clk 0:02:16.3]} 25. Bf1 {[%clk
0:01:42.3]} 25... Rc2 {[%clk 0:02:06.4]} 26. Re3 {[%clk 0:01:31.8]} 26... f6
{[%clk 0:02:04.9]} 27. b3 {[%clk 0:01:21.1]} 27... Ng4 {[%clk 0:01:45.8]} 28.
Rg3 {[%clk 0:01:13.6]} 28... Nf2+ {[%clk 0:01:37]} 29. Kg1 {[%clk 0:01:12.5]}
29... Ne4 {[%clk 0:01:36.7]} 30. Bd3 {[%clk 0:01:12.6]} 30... Rxc3 {[%clk
0:01:34.3]} 31. Bxe4 {[%clk 0:01:12.9]} 31... Rxg3+ {[%clk 0:01:34]} 32. hxg3
{[%clk 0:01:12.1]} 32... Re8 {[%clk 0:01:30.1]} 33. Bg2 {[%clk 0:00:56.9]} 33...
Re3 {[%clk 0:01:28.5]} 34. b4 {[%clk 0:00:42.4]} 34... cxb4 {[%clk 0:01:14.4]}
35. Kf2 {[%clk 0:00:42.6]} 35... Rc3 {[%clk 0:01:11.2]} 36. Bf1 {[%clk
0:00:40.9]} 36... b3 {[%clk 0:01:11.2]} 37. Ke1 {[%clk 0:00:39.5]} 37... b2
{[%clk 0:01:10.5]} 38. Kd2 {[%clk 0:00:39.8]} 38... b1=Q {[%clk 0:01:06.7]} 39.
Kxc3 {[%clk 0:00:39.7]} 39... Qxf1 {[%clk 0:01:06.3]} 40. c5 {[%clk 0:00:40.3]}
40... dxc5 {[%clk 0:01:04.4]} 41. d6 {[%clk 0:00:38.9]} 41... Kf7 {[%clk
0:01:02.7]} 42. a5 {[%clk 0:00:37]} 42... Ke8 {[%clk 0:01:01.6]} 43. Kb3 {[%clk
0:00:35.9]} 43... Kd7 {[%clk 0:01:01.3]} 44. Ka4 {[%clk 0:00:35.3]} 44... Qd3
{[%clk 0:00:52.6]} 45. g4 {[%clk 0:00:32.7]} 45... Qc3 {[%clk 0:00:52.5]} 46. g5
{[%clk 0:00:32.2]} 46... Qb4# {[%clk 0:00:53.4]} 0-1